Department Family,Entity,Date of Payment,Expense Type,Expense Area,Supplier,Transaction Number,Amount in Sterling,Description
ECGD,ECGD,"Mar 2, 2020",Agency - Interim Managers,HRD,Alexander Mann Solutions,       79108,"1,988.40",Interim Staff
ECGD,ECGD,"Mar 2, 2020",Agency - Interim Managers,HRD,Alexander Mann Solutions,       79108,"2,110.16",Interim Staff
ECGD,ECGD,"Mar 2, 2020",Agency - Interim Managers,HRD,Alexander Mann Solutions,       79108,"2,134.76",Interim Staff
ECGD,ECGD,"Mar 2, 2020",Agency - Interim Managers,HRD,Alexander Mann Solutions,       79108,"2,362.70",Interim Staff
ECGD,ECGD,"Mar 2, 2020",Agency - Interim Managers,HRD,Alexander Mann Solutions,       79108,"2,887.75",Interim Staff
ECGD,ECGD,"Mar 2, 2020",Agency - Specialist Contractors,HRD,Alexander Mann Solutions,       79108,"2,258.44",Interim Staff
ECGD,ECGD,"Mar 2, 2020",Agency - Specialist Contractors,HRD,Alexander Mann Solutions,       79108,"2,399.59",Interim Staff
ECGD,ECGD,"Mar 2, 2020",Agency - Specialist Contractors,HRD,Alexander Mann Solutions,       79108,"2,540.75",Interim Staff
ECGD,ECGD,"Mar 2, 2020",Agency - Specialist Contractors,HRD,Alexander Mann Solutions,       79108,"2,566.35",Interim Staff
ECGD,ECGD,"Mar 2, 2020",Agency - Specialist Contractors,HRD,Alexander Mann Solutions,       79108,"2,823.05",Interim Staff
ECGD,ECGD,"Mar 2, 2020",Agency - Temporary Staff,HRD,Alexander Mann Solutions,       79108,519.30,Interim Staff
ECGD,ECGD,"Mar 3, 2020",Change Board Projects,Change Board,North Highland UK Ltd,       79119,"50,400.00",Project IT Services
ECGD,ECGD,"Mar 10, 2020",GREAT Marketing costs (UKEF share),OCCMC,Manning Gottlieb OMD,       79145,"30,154.58",Marketing and Comms activity
ECGD,ECGD,"Mar 10, 2020",GREAT Marketing costs (UKEF share),OCCMC,Manning Gottlieb OMD,       79146,"47,724.54",Marketing and Comms activity
ECGD,ECGD,"Mar 10, 2020",Agency - Interim Managers,HRD,Alexander Mann Solutions,       79155,"1,988.40",Interim Staff
ECGD,ECGD,"Mar 10, 2020",Agency - Interim Managers,HRD,Alexander Mann Solutions,       79155,"2,310.20",Interim Staff
ECGD,ECGD,"Mar 10, 2020",Agency - Interim Managers,HRD,Alexander Mann Solutions,       79155,"2,362.70",Interim Staff
ECGD,ECGD,"Mar 10, 2020",Agency - Interim Managers,HRD,Alexander Mann Solutions,       79155,"2,668.45",Interim Staff
ECGD,ECGD,"Mar 10, 2020",Agency - Interim Managers,HRD,Alexander Mann Solutions,       79155,"2,949.35",Interim Staff
ECGD,ECGD,"Mar 10, 2020",Agency - Interim Managers,HRD,Alexander Mann Solutions,       79155,"2,949.35",Interim Staff
ECGD,ECGD,"Mar 10, 2020",Agency - Interim Managers,HRD,Alexander Mann Solutions,       79155,"2,949.35",Interim Staff
ECGD,ECGD,"Mar 10, 2020",Agency - Specialist Contractors,HRD,Alexander Mann Solutions,       79155,"1,552.68",Interim Staff
ECGD,ECGD,"Mar 10, 2020",Agency - Specialist Contractors,HRD,Alexander Mann Solutions,       79155,"3,387.66",Interim Staff
ECGD,ECGD,"Mar 10, 2020",Agency - Temporary Staff,HRD,Alexander Mann Solutions,       79155,23.00,Interim Staff
ECGD,ECGD,"Mar 10, 2020",Agency - Temporary Staff,HRD,Alexander Mann Solutions,       79155,865.50,Interim Staff
ECGD,ECGD,"Mar 16, 2020",Change Board Projects,Change Board,North Highland UK Ltd,       79177,"55,200.00",Project IT Services
ECGD,ECGD,"Mar 16, 2020",Fixed IT charges,ID,Risual Ltd,       79178,"27,374.50",IT Services
ECGD,ECGD,"Mar 16, 2020",Project Trident - costs and recharge,Business Group _ Main,Price Waterhouse Coopers,       79183,"232,644.00",Audit Services
ECGD,ECGD,"Mar 23, 2020",Agency - Interim Managers,HRD,Alexander Mann Solutions,       79201,"1,988.40",Interim Staff
ECGD,ECGD,"Mar 23, 2020",Agency - Interim Managers,HRD,Alexander Mann Solutions,       79201,"2,362.70",Interim Staff
ECGD,ECGD,"Mar 23, 2020",Agency - Interim Managers,HRD,Alexander Mann Solutions,       79201,"2,668.45",Interim Staff
ECGD,ECGD,"Mar 23, 2020",Agency - Specialist Contractors,HRD,Alexander Mann Solutions,       79201,564.61,Interim Staff
ECGD,ECGD,"Mar 23, 2020",Agency - Specialist Contractors,HRD,Alexander Mann Solutions,       79201,"2,258.44",Interim Staff
ECGD,ECGD,"Mar 23, 2020",Agency - Specialist Contractors,HRD,Alexander Mann Solutions,       79201,"2,566.35",Interim Staff
ECGD,ECGD,"Mar 23, 2020",Agency - Specialist Contractors,HRD,Alexander Mann Solutions,       79201,"2,566.35",Interim Staff
ECGD,ECGD,"Mar 23, 2020",Agency - Specialist Contractors,HRD,Alexander Mann Solutions,       79201,"2,566.35",Interim Staff
ECGD,ECGD,"Mar 23, 2020",Agency - Specialist Contractors,HRD,Alexander Mann Solutions,       79201,"2,566.35",Interim Staff
ECGD,ECGD,"Mar 23, 2020",Agency - Specialist Contractors,HRD,Alexander Mann Solutions,       79201,"2,566.35",Interim Staff
ECGD,ECGD,"Mar 23, 2020",Agency - Temporary Staff,HRD,Alexander Mann Solutions,       79201,658.08,Interim Staff
ECGD,ECGD,"Mar 23, 2020",Agency - Temporary Staff,HRD,Alexander Mann Solutions,       79201,865.50,Interim Staff
ECGD,ECGD,"Mar 23, 2020",Salaries & Wages,HRD,Cabinet Office,       79202,"26,773.00",Salary Costs
ECGD,ECGD,"Mar 23, 2020",Agency - Interim Managers,HRD,Alexander Mann Solutions,       79203,"1,988.40",Interim Staff
ECGD,ECGD,"Mar 23, 2020",Agency - Interim Managers,HRD,Alexander Mann Solutions,       79203,"2,362.70",Interim Staff
ECGD,ECGD,"Mar 23, 2020",Agency - Interim Managers,HRD,Alexander Mann Solutions,       79203,"2,637.70",Interim Staff
ECGD,ECGD,"Mar 23, 2020",Agency - Interim Managers,HRD,Alexander Mann Solutions,       79203,"2,668.45",Interim Staff
ECGD,ECGD,"Mar 23, 2020",Agency - Interim Managers,HRD,Alexander Mann Solutions,       79203,"2,949.35",Interim Staff
ECGD,ECGD,"Mar 23, 2020",Agency - Interim Managers,HRD,Alexander Mann Solutions,       79203,"2,949.35",Interim Staff
ECGD,ECGD,"Mar 23, 2020",Agency - Specialist Contractors,HRD,Alexander Mann Solutions,       79203,"1,539.84",Interim Staff
ECGD,ECGD,"Mar 23, 2020",Agency - Specialist Contractors,HRD,Alexander Mann Solutions,       79203,"1,924.80",Interim Staff
ECGD,ECGD,"Mar 23, 2020",Agency - Specialist Contractors,HRD,Alexander Mann Solutions,       79203,"2,823.05",Interim Staff
ECGD,ECGD,"Mar 23, 2020",Agency - Temporary Staff,HRD,Alexander Mann Solutions,       79203,23.00,Interim Staff
ECGD,ECGD,"Mar 23, 2020",Agency - Temporary Staff,HRD,Alexander Mann Solutions,       79203,96.76,Interim Staff
ECGD,ECGD,"Mar 23, 2020",Agency - Temporary Staff,HRD,Alexander Mann Solutions,       79203,331.74,Interim Staff
ECGD,ECGD,"Mar 23, 2020",Agency - Temporary Staff,HRD,Alexander Mann Solutions,       79203,479.18,Interim Staff
ECGD,ECGD,"Mar 23, 2020",Agency - Temporary Staff,HRD,Alexander Mann Solutions,       79203,483.79,Interim Staff
ECGD,ECGD,"Mar 23, 2020",Agency - Temporary Staff,HRD,Alexander Mann Solutions,       79203,589.76,Interim Staff
ECGD,ECGD,"Mar 23, 2020",Agency - Temporary Staff,HRD,Alexander Mann Solutions,       79203,645.05,Interim Staff
ECGD,ECGD,"Mar 23, 2020",Agency - Temporary Staff,HRD,Alexander Mann Solutions,       79203,645.05,Interim Staff
ECGD,ECGD,"Mar 23, 2020",Agency - Temporary Staff,HRD,Alexander Mann Solutions,       79203,692.40,Interim Staff
ECGD,ECGD,"Mar 27, 2020",GREAT Marketing costs (UKEF share),OCCMC,OMB Research Ltd,       79213,"48,087.60",IT Services
ECGD,ECGD,"Mar 27, 2020",Fixed IT charges,ID,Bytes Software Services Ltd,       79214,"58,183.83",IT Services
ECGD,ECGD,"Mar 27, 2020",Change Board Projects,Change Board,KPMG,       79218,"64,800.00",Project IT Services
ECGD,ECGD,"Mar 27, 2020",Change Board Projects,Change Board,KPMG,       79219,"64,800.00",Project IT Services
ECGD,ECGD,"Mar 30, 2020",Project Trident - costs and recharge,Business Group _ Main,Price Waterhouse Coopers,       79230,"400,970.40",Audit Services
ECGD,ECGD,"Mar 30, 2020",Agency - Interim Managers,HRD,Alexander Mann Solutions,       79231,"1,988.40",Interim Staff
ECGD,ECGD,"Mar 30, 2020",Agency - Interim Managers,HRD,Alexander Mann Solutions,       79231,"2,362.70",Interim Staff
ECGD,ECGD,"Mar 30, 2020",Agency - Interim Managers,HRD,Alexander Mann Solutions,       79231,"2,637.70",Interim Staff
ECGD,ECGD,"Mar 30, 2020",Agency - Interim Managers,HRD,Alexander Mann Solutions,       79231,"2,668.45",Interim Staff
ECGD,ECGD,"Mar 30, 2020",Agency - Interim Managers,HRD,Alexander Mann Solutions,       79231,"2,949.35",Interim Staff
ECGD,ECGD,"Mar 30, 2020",Agency - Specialist Contractors,HRD,Alexander Mann Solutions,       79231,"1,924.80",Interim Staff
ECGD,ECGD,"Mar 30, 2020",Agency - Specialist Contractors,HRD,Alexander Mann Solutions,       79231,"2,823.05",Interim Staff
ECGD,ECGD,"Mar 30, 2020",Agency - Specialist Contractors,HRD,Alexander Mann Solutions,       79231,"3,676.17",Interim Staff
ECGD,ECGD,"Mar 30, 2020",Agency - Temporary Staff,HRD,Alexander Mann Solutions,       79231,645.05,Interim Staff
ECGD,ECGD,"Mar 30, 2020",Agency - Temporary Staff,HRD,Alexander Mann Solutions,       79231,645.05,Interim Staff
ECGD,ECGD,"Mar 30, 2020",Agency - Temporary Staff,HRD,Alexander Mann Solutions,       79231,692.40,Interim Staff
ECGD,ECGD,"Mar 30, 2020",Fixed IT charges,ID,Mulesoft Inc,       79232,"163,537.30",IT Services
ECGD,ECGD,"Mar 30, 2020",GREAT Marketing costs (UKEF share),OCCMC,MSQ Partners Group Limited,       79236,"30,925.20",Marketing and Comms activity
ECGD,ECGD,"Mar 30, 2020",Change Board Projects,Change Board,North Highland UK Ltd,       79238,"21,120.00",Project IT Services
ECGD,ECGD,"Mar 30, 2020",Legal fees administration,LD,Linklaters LLP - LONDON,       79239,"23,248.12",Legal Services
ECGD,ECGD,"Mar 31, 2020",1HGR Rent and Charges,HRD,HM Treasury,       79247,"630,801.62",Accomodation cost
ECGD,ECGD,"Mar 31, 2020",Fixed IT charges,ID,Risual Ltd,       79251,"56,887.43",IT Services
ECGD,ECGD,"Mar 31, 2020",Online costs,Risk Approval Division,Fitch Solutions Ltd,       79253,"30,820.69",Risk analysis
